lending/lending_fUSD_20240512
["ID","MTS","AMOUNT","RATE_DAILY","PERIOD"]
[326858059,1715518234463,-1868.55,0.00012691,2]
[326858060,1715518234472,-500.0,0.00012691,2]
[326858061,1715518234481,-962.39,0.00012691,2]
[326858062,1715518234490,-1340.08,0.00012691,2]
[326858063,1715518234500,-1100.12,0.00012691,2]
[326858064,1715518234512,-1159.48,0.00012691,2]
[326858065,1715518234521,-1150.13,0.00012691,2]
[326858066,1715518234530,-3394.55,0.00012691,2]
[326858067,1715518234539,-500.0,0.00012691,2]
[326858068,1715518234550,-571.27068773,0.00012691,2]
[326858069,1715518234559,-3163.35,0.00012691,2]
[326858070,1715518234569,-500.0,0.00012691,2]
[326858071,1715518234580,-500.0,0.00012691,2]
[326858072,1715518234589,-28020.26,0.00012691,2]
[326858073,1715518234600,-500.0,0.00012691,2]
[326858074,1715518234609,-500.0,0.00012691,2]
[326858075,1715518234619,-500.0,0.00012691,2]
[326858076,1715518234628,-500.0,0.00012691,2]
[326858077,1715518234637,-3726.06,0.00012691,2]
[326858078,1715518234646,-2170.4,0.00012691,2]
[326858079,1715518234655,-1650.34,0.00012691,2]
[326858080,1715518234664,-500.0,0.00012691,2]
[326858081,1715518234674,-500.0,0.00012691,2]
[326858082,1715518234683,-500.0,0.00012691,2]
[326858083,1715518234693,-1588.16,0.00012691,2]
[326858084,1715518234704,-500.0,0.00012691,2]
[326858085,1715518234713,-5204.37,0.00012691,2]
[326858086,1715518234723,-1504.74,0.00012691,2]
[326858087,1715518234732,-513.20091429,0.00012691,2]
[326858088,1715518234741,-3578.81,0.00012691,2]
[326858089,1715518234751,-938.21,0.00012691,2]
[326858090,1715518234760,-500.0,0.00012691,2]
[326858091,1715518234769,-500.0,0.00012691,2]
[326858092,1715518234778,-2778.43,0.00012691,2]
[326858093,1715518234787,-500.0,0.00012691,2]
[326858094,1715518234797,-886.11,0.00012691,2]
[326858095,1715518234806,-500.0,0.00012691,2]
[326858096,1715518234816,-1964.2,0.00012691,2]
[326858097,1715518234827,-513.63145513,0.00012691,2]
[326858098,1715518234837,-1930.89,0.00012691,2]
[326858099,1715518234848,-500.0,0.00012691,2]
[326858100,1715518234857,-10250.2,0.00012691,2]
[326858101,1715518234867,-571.64,0.00012691,2]
[326858102,1715518234876,-500.0,0.00012691,2]
[326858103,1715518234886,-500.0,0.00012691,2]
[326858104,1715518234895,-500.0,0.00012691,2]
[326858105,1715518234904,-508.8176465,0.00012691,2]
[326858106,1715518234913,-500.0,0.00012691,2]
[326858107,1715518234923,-987.81,0.00012691,2]
[326858108,1715518234932,-500.0,0.00012691,2]
[326858109,1715518234941,-503.54265623,0.00012691,2]
[326858110,1715518234950,-2867.77,0.00012691,2]
[326858111,1715518234959,-2650.41,0.00012691,2]
[326858112,1715518234968,-5796.57,0.00012691,2]
[326858113,1715518234977,-9804.88,0.00012691,2]
[326858114,1715518234986,-2922.86,0.00012691,2]
[326858115,1715518234996,-1708.04,0.00012691,2]
[326858116,1715518235005,-515.7853503,0.00012691,2]
[326858117,1715518235014,-674.85,0.00012691,2]
[326858118,1715518235023,-500.0,0.00012691,2]
[326858119,1715518235032,-500.0,0.00012691,2]
[326858120,1715518235040,-500.0,0.00012691,2]
[326858121,1715518235051,-4552.31,0.00012691,2]
[326858122,1715518235059,-510.36276023,0.00012691,2]
[326858123,1715518235069,-2987.78,0.00012691,2]
[326858124,1715518235078,-49055.19,0.00012691,2]
[326858125,1715518235088,-506.3798578,0.00012691,2]
[326858126,1715518235098,-505.61129465,0.00012691,2]
[326858127,1715518235109,-12745.9,0.00012691,2]
[326858128,1715518235118,-538.09954069,0.00012691,2]
[326858129,1715518235127,-1059.59,0.00012691,2]
[326858130,1715518235137,-3357.87,0.00012691,2]
[326858131,1715518235146,-514.06517614,0.00012691,2]
[326858132,1715518235156,-768.9,0.00012691,2]
[326858133,1715518235166,-500.0,0.00012691,2]
[326858134,1715518235175,-500.0,0.00012691,2]
[326858135,1715518235184,-3379.6,0.00012691,2]
[326858136,1715518235194,-500.0,0.00012691,2]
[326858137,1715518235203,-500.0,0.00012691,2]
[326858138,1715518235213,-1184.72,0.00012691,2]
[326858139,1715518235223,-3371.04,0.00012691,2]
[326858140,1715518235233,-558.6903463,0.00012691,2]
[326858141,1715518235242,-500.0,0.00012691,2]
[326858142,1715518235254,-13927.66,0.00012691,2]
[326858143,1715518235264,-1002.89,0.00012691,2]
[326858144,1715518235274,-500.0,0.00012691,2]
[326858145,1715518235284,-969.42,0.00012691,2]
[326858146,1715518235294,-500.0,0.00012691,2]
[326858147,1715518235303,-2514.16,0.00012691,2]
[326858148,1715518235313,-500.0,0.00012691,2]
[326858149,1715518235322,-500.0,0.00012691,2]
[326858150,1715518235332,-2976.04,0.00012691,2]
[326858151,1715518235341,-500.0,0.00012691,2]
[326858152,1715518235350,-2405.39,0.00012691,2]
[326858153,1715518235359,-500.0,0.00012691,2]
[326858154,1715518235368,-1623.81,0.00012691,2]
[326858155,1715518235377,-100000.0,0.00012692,2]
[326858156,1715518235386,-190854.0682,0.00012692,2]
[326858157,1715518235396,-1535.34738607,0.0001272,2]
[326858158,1715518235405,-3500.94133622,0.00012744,2]
[326858159,1715518235414,-965.88462889,0.0001277,2]
[326858160,1715518235424,-183.78119777,0.0001277,2]
[326858161,1715518235434,-500.0,0.00012788,2]
[326858162,1715518235444,-508.38,0.000128,2]
[326858163,1715518235453,-508.38,0.000128,2]
[326858164,1715518235463,-508.38,0.000128,2]
[326858165,1715518235472,-508.38,0.000128,2]
[326858166,1715518235481,-508.38,0.000128,2]
[326858167,1715518235490,-508.38,0.000128,2]
[326858168,1715518235501,-508.38,0.000128,2]
[326858169,1715518235514,-508.38,0.000128,2]
[326858170,1715518235523,-508.38,0.000128,2]
[326858171,1715518235532,-508.38,0.000128,2]
[326858172,1715518235542,-508.38,0.000128,2]
[326858173,1715518235552,-508.38,0.000128,2]
[326858174,1715518235561,-508.38,0.000128,2]
[326858175,1715518235571,-508.38,0.000128,2]
[326858176,1715518235582,-508.38,0.000128,2]
[326858177,1715518235591,-508.38,0.000128,2]
[326858178,1715518235601,-508.38,0.000128,2]
[326858179,1715518235610,-508.38,0.000128,2]
[326858180,1715518235619,-508.38,0.000128,2]
[326858181,1715518235629,-508.38,0.000128,2]
[326858182,1715518235639,-508.38,0.000128,2]
[326858183,1715518235649,-508.42467939,0.0001284,2]
[326858184,1715518235659,-508.38,0.0001284,2]
[326858185,1715518235669,-508.38,0.0001284,2]
[326858186,1715518235680,-165.0,0.00012844,2]
[326858187,1715518235689,-500.0,0.00012845,2]
[326858188,1715518235699,-500.0,0.00012845,2]
[326858189,1715518235708,-586.14,0.00012845,2]
[326858190,1715518235718,-586.14,0.00012845,2]
[326858191,1715518235727,-500.0,0.00012845,2]
[326858192,1715518235737,-500.0,0.00012845,2]
[326858193,1715518235747,-509.06492272,0.00012845,2]
[326858194,1715518235756,-509.38833419,0.00012845,2]
[326858195,1715518235766,-1380.41,0.00012845,2]
[326858196,1715518235775,-1380.41,0.00012845,2]
[326858197,1715518235785,-500.0,0.00012845,2]
[326858198,1715518235794,-500.0,0.00012845,2]
[326858199,1715518235803,-500.0,0.00012845,2]
[326858200,1715518235812,-500.0,0.00012845,2]
[326858201,1715518235822,-538.8722828,0.00012845,2]
[326858202,1715518235831,-500.0,0.00012845,2]
[326858203,1715518235841,-500.0,0.00012845,2]
[326858204,1715518235850,-500.0,0.00012845,2]
[326858205,1715518235860,-684.43,0.00012845,2]
[326858206,1715518235869,-684.43,0.00012845,2]
[326858207,1715518235878,-500.0,0.00012845,2]
[326858208,1715518235887,-500.0,0.00012845,2]
[326858209,1715518235896,-829.03,0.00012845,2]
[326858210,1715518235906,-829.03,0.00012845,2]
[326858211,1715518235915,-500.0,0.00012845,2]
[326858212,1715518235924,-508.00798695,0.00012845,2]
[326858213,1715518235933,-500.0,0.00012845,2]
[326858214,1715518235942,-500.0,0.00012845,2]
[326858215,1715518235951,-241.83607815,0.00012845,2]
[326858216,1715518235960,-500.0,0.00012845,2]
[326858217,1715518235969,-810.48,0.00012845,2]
[326858218,1715518235979,-518.44408529,0.00012845,2]
[326858219,1715518235988,-810.48,0.00012845,2]
[326858220,1715518235997,-804.47,0.00012845,2]
[326858221,1715518236006,-804.47,0.00012845,2]
[326858222,1715518236015,-500.0,0.00012845,2]
[326858223,1715518236024,-500.0,0.00012845,2]
[326858224,1715518236033,-517.3454825,0.00012845,2]
[326858225,1715518236042,-1018.82,0.00012845,2]
[326858226,1715518236052,-1018.82,0.00012845,2]
[326858227,1715518236061,-500.0,0.00012845,2]
[326858228,1715518236070,-500.0,0.00012845,2]
[326858229,1715518236079,-500.0,0.00012845,2]
[326858230,1715518236088,-500.0,0.00012845,2]
[326858231,1715518236097,-500.0,0.00012845,2]
[326858232,1715518236107,-500.0,0.00012845,2]
[326858233,1715518236116,-507.33431741,0.00012845,2]
[326858234,1715518236124,-578.26,0.00012845,2]
[326858235,1715518236134,-578.26,0.00012845,2]
[326858236,1715518236143,-500.0,0.00012845,2]
[326858237,1715518236152,-528.78203312,0.00012845,2]
[326858238,1715518236161,-500.0,0.00012845,2]
[326858239,1715518236171,-500.0,0.00012845,2]
[326858240,1715518236180,-500.0,0.00012845,2]
[326858241,1715518236189,-500.0,0.00012845,2]
[326858242,1715518236198,-500.0,0.00012845,2]
[326858243,1715518236207,-500.0,0.00012845,2]
[326858244,1715518236216,-500.0,0.00012845,2]
[326858245,1715518236226,-532.63855142,0.00012845,2]
[326858246,1715518236235,-500.0,0.00012845,2]
[326858247,1715518236244,-500.0,0.00012845,2]
[326858248,1715518236254,-2954.55,0.00012845,2]
[326858249,1715518236263,-500.0,0.00012845,2]
[326858250,1715518236272,-500.0,0.00012845,2]
[326858251,1715518236281,-500.0,0.00012845,2]
[326858252,1715518236290,-500.0,0.00012845,2]
[326858253,1715518236299,-1242.83,0.00012845,2]
[326858254,1715518236308,-1503.26,0.00012845,2]
[326858255,1715518236317,-500.0,0.00012845,2]
[326858256,1715518236327,-500.0,0.00012845,2]
[326858257,1715518236335,-518.71,0.00012845,2]
[326858258,1715518236344,-649.41,0.00012845,2]
[326858259,1715518236353,-500.0,0.00012845,2]
[326858260,1715518236363,-500.0,0.00012845,2]
[326858261,1715518236372,-500.0,0.00012845,2]
[326858262,1715518236381,-592.39,0.00012845,2]
[326858263,1715518236402,-8748.47,0.00012845,2]
[326858264,1715518236413,-528.06544638,0.00012845,2]
[326858265,1715518236423,-500.0,0.00012845,2]
[326858266,1715518236433,-500.0,0.00012845,2]
[326858267,1715518236444,-500.0,0.00012845,2]
[326858268,1715518236453,-500.0,0.00012845,2]
[326858269,1715518236464,-948.44,0.00012845,2]
[326858270,1715518236474,-500.0,0.00012845,2]
[326858271,1715518236484,-527.47638877,0.00012845,2]
[326858272,1715518236494,-508.44,0.00012845,2]
[326858273,1715518236506,-500.0,0.00012845,2]
[326858274,1715518236516,-1819.61,0.00012845,2]
[326858275,1715518236814,-1136.82,0.00012845,2]
[326858276,1715518236824,-500.0,0.00012845,2]
[326858277,1715518236833,-500.0,0.00012845,2]
[326858278,1715518236842,-500.0,0.00012845,2]
[326858279,1715518236851,-655.49,0.00012845,2]
[326858280,1715518236861,-1678.64,0.00012845,2]
[326858281,1715518236870,-500.0,0.00012845,2]
[326858282,1715518236879,-500.0,0.00012845,2]
[326858283,1715518236889,-500.0,0.00012845,2]
[326858284,1715518236898,-500.0,0.00012845,2]
[326858285,1715518236907,-500.0,0.00012845,2]
[326858286,1715518236922,-6142.83,0.00012845,2]
[326858287,1715518236932,-500.0,0.00012845,2]
[326858288,1715518236942,-500.0,0.00012845,2]
[326858289,1715518236952,-964.23,0.00012845,2]
[326858290,1715518236962,-500.0,0.00012845,2]
[326858291,1715518236972,-500.0,0.00012845,2]
[326858292,1715518236982,-500.0,0.00012845,2]
[326858293,1715518236991,-500.0,0.00012845,2]
[326858294,1715518237001,-173.94,0.00012845,2]
[326858295,1715518237011,-500.0,0.00012845,2]
[326858296,1715518237021,-2916.34,0.00012845,2]
[326858297,1715518237031,-1231.39,0.00012845,2]
[326858298,1715518237041,-500.0,0.00012845,2]
[326858299,1715518237051,-500.0,0.00012845,2]
[326858300,1715518237061,-500.0,0.00012845,2]
[326858301,1715518237071,-5059.4378068,0.00012845,2]
[326858302,1715518237081,-595.03,0.00012845,2]
[326858303,1715518237091,-980.6,0.00012845,2]
[326858304,1715518237101,-529.74309054,0.00012845,2]
[326858305,1715518237110,-500.0,0.00012845,2]
[326858306,1715518237121,-592.5,0.00012845,2]
[326858307,1715518237130,-505.71454072,0.00012845,2]
[326858308,1715518237140,-500.0,0.00012845,2]
[326858309,1715518237150,-500.0,0.00012845,2]
[326858310,1715518237160,-500.0,0.00012845,2]
[326858311,1715518237169,-500.0,0.00012845,2]
[326858312,1715518237179,-1108.58,0.00012845,2]
[326858313,1715518237188,-917.19,0.00012845,2]
[326858314,1715518237198,-209.36450059,0.00012845,2]
[326858315,1715518237208,-917.19,0.00012845,2]
[326858316,1715518237218,-917.19,0.00012845,2]
[326858317,1715518237228,-645.72,0.00012845,2]
[326858318,1715518237238,-1850.24,0.00012845,2]
[326858319,1715518237248,-783.62,0.00012845,2]
[326858320,1715518237258,-1850.24,0.00012845,2]
[326858321,1715518237268,-1850.24,0.00012845,2]
[326858322,1715518237278,-500.0,0.00012845,2]
[326858323,1715518237287,-1448.8,0.00012845,2]
[326858324,1715518237297,-500.0,0.00012845,2]
[326858325,1715518237307,-1003.26,0.00012845,2]
[326858326,1715518237316,-516.57184618,0.00012845,2]
[326858327,1715518237327,-1003.26,0.00012845,2]
[326858328,1715518237337,-1003.26,0.00012845,2]
[326858329,1715518237347,-1989.69,0.00012845,2]
[326858330,1715518237357,-1989.69,0.00012845,2]
[326858331,1715518237367,-1989.69,0.00012845,2]
[326858332,1715518237376,-700.4,0.00012845,2]
[326858333,1715518237386,-503.83432607,0.00012845,2]
[326858334,1715518237395,-576.07,0.00012845,2]
[326858335,1715518237405,-1376.48,0.00012845,2]
[326858336,1715518237415,-500.0,0.00012845,2]
[326858337,1715518237425,-500.0,0.00012845,2]
[326858338,1715518237435,-500.0,0.00012845,2]
[326858339,1715518237445,-500.0,0.00012845,2]
[326858340,1715518237455,-1129.72,0.00012845,2]
[326858341,1715518237464,-936.27,0.00012845,2]
[326858342,1715518237474,-936.27,0.00012845,2]
[326858343,1715518237484,-936.27,0.00012845,2]
[326858344,1715518237494,-500.0,0.00012845,2]
[326858345,1715518237512,-500.0,0.00012845,2]
[326858346,1715518237522,-187.98855793,0.00012845,2]
[326858347,1715518237532,-500.0,0.00012845,2]
[326858348,1715518237544,-6878.13,0.00012845,2]
[326858349,1715518237554,-500.0,0.00012845,2]
[326858350,1715518237564,-2914.29,0.00012845,2]
[326858351,1715518237574,-2914.29,0.00012845,2]
[326858352,1715518237585,-2914.29,0.00012845,2]
[326858353,1715518237595,-551.09,0.00012845,2]
[326858354,1715518237605,-551.09,0.00012845,2]
[326858355,1715518237614,-691.26,0.00012845,2]
[326858356,1715518237624,-551.09,0.00012845,2]
[326858357,1715518237634,-1255.86,0.00012845,2]
[326858358,1715518237644,-500.0,0.00012845,2]
[326858359,1715518237654,-1150.13,0.00012845,2]
[326858360,1715518237663,-3394.55,0.00012845,2]
[326858361,1715518237672,-533.62192894,0.00012845,2]
[326858362,1715518237682,-1150.13,0.00012845,2]
[326858364,1715518237691,-497.61141814,0.00012845,2]
[326858365,1715518237701,-1150.13,0.00012845,2]
[326858366,1715518237710,-511.98457455,0.00012845,2]
[326858367,1715518237719,-500.0,0.00012845,2]
[326858368,1715518237729,-1918.94137748,0.00012845,2]
[326858373,1715518238464,-251.45862252,0.00012845,2]
[326858374,1715518238474,-2170.4,0.00012845,2]
[326858375,1715518238483,-2170.4,0.00012845,2]
[326858376,1715518238493,-590.55317771,0.00012845,2]
[326858377,1715518238507,-500.0,0.00012845,2]
[326858378,1715518238517,-500.0,0.00012845,2]
[326858379,1715518238527,-3289.99113191,0.00012845,2]
[326858380,1715518238539,-373.00390906,0.00012845,2]
[326858381,1715518238560,-562.34159793,0.00012845,2]
[326858382,1715518238571,-979.0333611,0.00012845,2]
[326858383,1715518238582,-3578.81,0.00012845,2]
[326858384,1715518238591,-938.21,0.00012845,2]
[326858385,1715518238602,-3578.81,0.00012845,2]
[326858386,1715518238611,-3578.81,0.00012845,2]
[326858387,1715518238620,-500.0,0.00012845,2]
[326858388,1715518238630,-500.0,0.00012845,2]
[326858389,1715518238639,-886.11,0.00012845,2]
[326858390,1715518238649,-886.11,0.00012845,2]
[326858391,1715518238659,-886.11,0.00012845,2]
[326858392,1715518238669,-500.0,0.00012845,2]
[326858393,1715518238679,-10250.2,0.00012845,2]
[326858394,1715518238689,-571.64,0.00012845,2]
[326858395,1715518238699,-500.0,0.00012845,2]
[326858396,1715518238708,-174.59374014,0.00012845,2]
[326858397,1715518238719,-987.81,0.00012845,2]
[326858398,1715518238730,-505.86288012,0.00012845,2]
[326858399,1715518238739,-2650.41,0.00012845,2]
[326858400,1715518238754,-2650.41,0.00012845,2]
[326858401,1715518238764,-2650.41,0.00012845,2]
[326858402,1715518238774,-674.85,0.00012845,2]
[326858403,1715518238784,-500.0,0.00012845,2]
[326858404,1715518238794,-500.0,0.00012845,2]
[326858405,1715518238803,-500.0,0.00012845,2]
[326858406,1715518238814,-500.0,0.00012845,2]
[326858407,1715518238823,-500.0,0.00012845,2]
[326858408,1715518238832,-4552.31,0.00012845,2]
[326858409,1715518238842,-4552.31,0.00012845,2]
[326858410,1715518238851,-6087.12214397,0.00012845,2]
[326858411,1715518238864,-6329.55979309,0.00012845,2]
[326858412,1715518238882,-1152.60554314,0.00012845,2]
[326858413,1715518238893,-1445.22698625,0.00012845,2]
[326858414,1715518238921,-748.28,0.00012691,2]
[326858415,1715518238930,-1121.720025,0.00012845,2]
[326858416,1715518238941,-259.94301548,0.00012845,2]
[326858417,1715518238953,-5800.0,0.00012845,2]
[326858418,1715518238964,-1075.9549519,0.00012845,2]
[326858419,1715518238975,-2657.2665935,0.00012845,2]
[326858420,1715518239003,-4903.46776207,0.00012845,2]
[326858448,1715518242937,-1641.02539894,0.00012642,2]
[326858449,1715518242968,-6263.55645499,0.00012642,2]
[326858450,1715518242979,-500.0,0.0001269,2]
[326858451,1715518242989,-580.44,0.00012691,2]
[326858452,1715518243000,-522.7,0.00012691,2]
[326858453,1715518243010,-500.0,0.00012691,2]
[326858454,1715518243021,-4706.71264882,0.00012845,2]
[326858455,1715518243035,-13515.61053678,0.00012845,2]
[326858456,1715518243046,-4552.31,0.00012845,2]
[326858457,1715518243057,-768.9,0.00012845,2]
[326858458,1715518243067,-500.0,0.00012845,2]
[326858459,1715518243077,-500.0,0.00012845,2]
[326858460,1715518243088,-500.0,0.00012845,2]
[326858461,1715518243098,-2135.14072995,0.00012845,2]
[326858462,1715518243121,-311.184893,0.00012845,2]
[326858463,1715518243134,-924.71437705,0.00012845,2]
[326858464,1715518243145,-1184.72,0.00012845,2]
[326858465,1715518243155,-3371.04,0.00012845,2]
[326858466,1715518243166,-1184.72,0.00012845,2]
[326858467,1715518243176,-3371.04,0.00012845,2]
[326858468,1715518243186,-1184.72,0.00012845,2]
[326858469,1715518243196,-500.0,0.00012845,2]
[326858470,1715518243205,-1002.89,0.00012845,2]
[326858471,1715518243216,-1002.89,0.00012845,2]
[326858472,1715518243226,-500.0,0.00012845,2]
[326858473,1715518243237,-1002.89,0.00012845,2]
[326858474,1715518243247,-969.42,0.00012845,2]
[326858475,1715518243259,-969.42,0.00012845,2]
[326858476,1715518243270,-969.42,0.00012845,2]
[326858477,1715518243280,-500.0,0.00012845,2]
[326858478,1715518243290,-500.0,0.00012845,2]
[326858479,1715518243300,-2976.04,0.00012845,2]
[326858480,1715518243310,-2976.04,0.00012845,2]
[326858481,1715518243320,-500.0,0.00012845,2]
[326858482,1715518243330,-2976.04,0.00012845,2]
[326858483,1715518243341,-499.97616295,0.00012845,2]
[326858484,1715518243354,-1905.41383705,0.00012845,2]
[326858485,1715518243364,-748.28,0.00012845,2]
[326858486,1715518243374,-580.44,0.00012845,2]
[326858487,1715518243385,-456.80825395,0.00012846,2]
[326858488,1715518243398,-58.48468697,0.00012846,2]
[326858489,1715518243408,-500.0,0.00012846,2]
[326858490,1715518243419,-340.38812963,0.00012846,2]
[326858492,1715518243429,-500.0,0.00012846,2]
[326858494,1715518243439,-543.36170498,0.00012846,2]
[326858496,1715518243449,-218.28084152,0.00012846,2]
[326858498,1715518243460,-519.45272673,0.00012846,2]
[326858500,1715518243471,-351.92351006,0.00012846,2]
[326858502,1715518243481,-504.89709776,0.00012846,2]
[326858505,1715518243491,-522.06654716,0.00012846,2]
[326858507,1715518243503,-500.0,0.00012846,2]
[326858509,1715518243515,-515.68332319,0.00012846,2]
[326858512,1715518243525,-425.461432,0.00012846,2]
[326858514,1715518243538,-80.85395609,0.00012846,2]
[326858516,1715518243549,-517.50279695,0.00012846,2]
[326858518,1715518243559,-171.60767849,0.00012846,2]
[326858522,1715518243590,-500.0,0.00012845,2]
[326858525,1715518243600,-328.39232151,0.00012846,2]
[326858527,1715518243611,-500.0,0.00012846,2]
[326858529,1715518243621,-815.38191616,0.00012846,2]
[326858531,1715518243634,-1312.50808384,0.00012846,2]
[326858533,1715518243644,-2127.89,0.00012846,2]
[326858535,1715518243655,-2679.52,0.00012846,2]
[326858537,1715518243665,-2679.52,0.00012846,2]
[326858540,1715518243676,-2807.03,0.00012846,2]
[326858542,1715518243686,-2807.03,0.00012846,2]
[326858544,1715518243696,-2230.81,0.00012846,2]
[326858546,1715518243706,-2230.81,0.00012846,2]
[326858548,1715518243715,-676.75,0.00012846,2]
[326858550,1715518243725,-676.75,0.00012846,2]
[326858552,1715518243735,-1666.78,0.00012846,2]
[326858554,1715518243746,-1666.78,0.00012846,2]
[326858556,1715518243756,-517.7,0.00012846,2]
[326858558,1715518243766,-517.7,0.00012846,2]
[326858560,1715518243776,-768.05,0.00012846,2]
[326858562,1715518243786,-768.05,0.00012846,2]
[326858565,1715518243796,-548.92,0.00012846,2]
[326858567,1715518243807,-548.92,0.00012846,2]
[326858569,1715518243817,-559.32,0.00012846,2]
[326858571,1715518243827,-559.32,0.00012846,2]
[326858573,1715518243837,-500.0,0.00012846,2]
[326858575,1715518243847,-500.0,0.00012846,2]
[326858577,1715518243857,-2114.58,0.00012846,2]
[326858579,1715518243866,-2114.58,0.00012846,2]
[326858581,1715518243877,-500.0,0.00012846,2]
[326858583,1715518243887,-500.0,0.00012846,2]
[326858585,1715518243896,-1159.81,0.00012846,2]
[326858587,1715518243906,-1159.81,0.00012846,2]
[326858589,1715518243916,-503.55,0.00012846,2]
[326858591,1715518243926,-503.55,0.00012846,2]
[326858593,1715518243937,-502.17,0.00012846,2]
[326858596,1715518243946,-502.17,0.00012846,2]
[326858598,1715518243956,-1754.26,0.00012846,2]
[326858600,1715518243966,-1754.26,0.00012846,2]
[326858602,1715518243975,-745.0,0.00012846,2]
[326858604,1715518243985,-745.0,0.00012846,2]
[326858606,1715518243995,-3066.38,0.00012846,2]
[326858608,1715518244007,-3066.38,0.00012846,2]
[326858610,1715518244017,-500.0,0.00012846,2]
[326858612,1715518244027,-2097.02,0.00012846,2]
[326858614,1715518244038,-2097.02,0.00012846,2]
[326858617,1715518244049,-2363.79,0.00012846,2]
[326858619,1715518244059,-2363.79,0.00012846,2]
[326858621,1715518244069,-572.34,0.00012846,2]
[326858623,1715518244079,-572.34,0.00012846,2]
[326858625,1715518244089,-500.0,0.00012846,2]
[326858627,1715518244099,-500.0,0.00012846,2]
[326858629,1715518244110,-500.0,0.00012846,2]
[326858631,1715518244121,-586.14,0.00012846,2]
[326858634,1715518244141,-586.14,0.00012846,2]
[326858636,1715518244152,-586.14,0.00012846,2]
[326858639,1715518244163,-500.0,0.00012846,2]
[326858641,1715518244174,-500.0,0.00012846,2]
[326858643,1715518244185,-739.02,0.00012846,2]
[326858645,1715518244195,-739.02,0.00012846,2]
[326858647,1715518244207,-1380.41,0.00012846,2]
[326858650,1715518244217,-1380.41,0.00012846,2]
[326858652,1715518244229,-1380.41,0.00012846,2]
[326858654,1715518244240,-500.0,0.00012846,2]
[326858656,1715518244250,-327.78479418,0.00012846,2]
[326858658,1715518244261,-500.0,0.00012846,2]
[326858660,1715518244271,-500.0,0.00012846,2]
[326858662,1715518244282,-500.0,0.00012846,2]
[326858665,1715518244292,-500.0,0.00012846,2]
[326858667,1715518244303,-786.63,0.00012846,2]
[326858669,1715518244314,-500.0,0.00012846,2]
[326858671,1715518244324,-500.0,0.00012846,2]
[326858673,1715518244334,-786.63,0.00012846,2]
[326858675,1715518244345,-684.43,0.00012846,2]
[326858678,1715518244355,-684.43,0.00012846,2]
[326858680,1715518244366,-684.43,0.00012846,2]
[326858682,1715518244377,-829.03,0.00012846,2]
[326858684,1715518244387,-829.03,0.00012846,2]
[326858686,1715518244397,-829.03,0.00012846,2]
[326858688,1715518244407,-500.0,0.00012846,2]
[326858690,1715518244417,-500.0,0.00012846,2]
[326858692,1715518244428,-500.0,0.00012846,2]
[326858694,1715518244438,-810.48,0.00012846,2]
[326858697,1715518244448,-2654.36,0.00012846,2]
[326858699,1715518244458,-810.48,0.00012846,2]
[326858701,1715518244468,-2654.36,0.00012846,2]
[326858703,1715518244478,-810.48,0.00012846,2]
[326858705,1715518244488,-804.47,0.00012846,2]